fUST/lending_fUST_20240919
["ID","MTS","AMOUNT","RATE_DAILY","PERIOD"]
[338528255,1726719047112,-227.330439,0.00018947,2]
[338528256,1726719047124,-248.401383,0.00018947,2]
[338528257,1726719047133,-248.401383,0.00018947,2]
[338528258,1726719047143,-152.822142,0.00018947,2]
[338528259,1726719047153,-152.822142,0.00018947,2]
[338528260,1726719047173,-151.0,0.00018955,2]
[338528261,1726719047182,-157.23771833,0.00018956,2]
[338528262,1726719047191,-151.0,0.00018956,2]
[338528263,1726719047200,-151.0,0.00018956,2]
[338528264,1726719047209,-151.0,0.00018956,2]
[338528265,1726719047218,-151.737006,0.00018956,2]
[338528266,1726719047227,-151.0,0.00018956,2]
[338528267,1726719047236,-151.0,0.00018956,2]
[338528268,1726719047245,-151.0,0.00018956,2]
[338528269,1726719047254,-853.424225,0.00018956,2]
[338528270,1726719047263,-853.424225,0.00018956,2]
[338528271,1726719047271,-853.424225,0.00018956,2]
[338528272,1726719047281,-853.424225,0.00018956,2]
[338528273,1726719047290,-853.424225,0.00018956,2]
[338528274,1726719047299,-853.424225,0.00018956,2]
[338528275,1726719047308,-151.0,0.00018956,2]
[338528276,1726719047317,-151.0,0.00018956,2]
[338528277,1726719047326,-151.0,0.00018956,2]
[338528278,1726719047336,-153.307512,0.00018956,2]
[338528279,1726719047345,-151.0,0.00018956,2]
[338528280,1726719047354,-151.0,0.00018956,2]
[338528281,1726719047363,-151.0,0.00018956,2]
[338528282,1726719047373,-151.0,0.00018956,2]
[338528283,1726719047382,-151.0,0.00018956,2]
[338528284,1726719047391,-151.0,0.00018956,2]
[338528285,1726719047400,-151.0,0.00018956,2]
[338528286,1726719047412,-151.0,0.00018956,2]
[338528287,1726719047421,-525.795438,0.00018956,2]
[338528288,1726719047431,-525.795438,0.00018956,2]
[338528289,1726719047439,-195.112224,0.00018956,2]
[338528290,1726719047448,-195.112224,0.00018956,2]
[338528291,1726719047458,-853.424225,0.00018962,2]
[338528292,1726719047467,-853.424225,0.00018962,2]
[338528293,1726719047476,-853.424225,0.00018962,2]
[338528294,1726719047486,-853.424225,0.00018962,2]
[338528295,1726719047496,-151.0,0.00018962,2]
[338528296,1726719047506,-151.0,0.00018962,2]
[338528297,1726719047515,-151.0,0.00018967,2]
[338528298,1726719047524,-151.0,0.00018967,2]
[338528299,1726719047533,-151.0,0.00018967,2]
[338528300,1726719047542,-151.0,0.00018967,2]
[338528301,1726719047551,-161.42631546,0.00018969,2]
[338528302,1726719047562,-500.0,0.00018969,2]
[338528303,1726719047571,-500.0,0.00018969,2]
[338528304,1726719047581,-288.87433006,0.00018969,2]
[338528305,1726719047590,-500.0,0.00018969,2]
[338528306,1726719047599,-500.0,0.00018969,2]
[338528307,1726719047608,-500.0,0.00018969,2]
[338528308,1726719047617,-500.0,0.00018969,2]
[338528309,1726719047626,-500.0,0.00018969,2]
[338528310,1726719047635,-500.0,0.00018969,2]
[338528311,1726719047644,-500.0,0.00018969,2]
[338528312,1726719047653,-500.0,0.00018969,2]
[338528313,1726719047662,-162.36066278,0.00018969,2]
[338528314,1726719047671,-500.0,0.00018969,2]
[338528315,1726719047680,-500.0,0.00018969,2]
[338528316,1726719047689,-500.0,0.00018969,2]
[338528317,1726719047698,-502.19561349,0.00018969,2]
[338528318,1726719047707,-500.0,0.00018969,2]
[338528319,1726719047716,-500.0,0.00018969,2]
[338528320,1726719047726,-302.81861559,0.00018969,2]
[338528321,1726719047735,-500.0,0.00018969,2]
[338528322,1726719047744,-500.0,0.00018969,2]
[338528323,1726719047754,-500.0,0.00018969,2]
[338528324,1726719047763,-500.0,0.00018969,2]
[338528325,1726719047772,-500.0,0.00018969,2]
[338528326,1726719047782,-500.0,0.00018969,2]
[338528327,1726719047792,-500.0,0.00018969,2]
[338528328,1726719047802,-500.0,0.00018969,2]
[338528329,1726719047811,-67968.1306823,0.0001897,3]
[338528330,1726719047821,-58632.5261238,0.0001897,3]
[338528331,1726719047839,-27889.2699919,0.0001897,3]
[338528332,1726719047848,-152.515743,0.0001897,2]
[338528333,1726719047857,-151.0,0.0001897,2]
[338528334,1726719047866,-168.865894,0.0001897,2]
[338528335,1726719047876,-525.795438,0.0001897,2]
[338528336,1726719047884,-525.795438,0.0001897,2]
[338528337,1726719047893,-525.795438,0.0001897,2]
[338528338,1726719047903,-525.795438,0.0001897,2]
[338528339,1726719047912,-195.112224,0.0001897,2]
[338528340,1726719047922,-195.112224,0.0001897,2]
[338528341,1726719047932,-195.112224,0.0001897,2]
[338528342,1726719047942,-195.112224,0.0001897,2]
[338528343,1726719047954,-151.0,0.0001897,2]
[338528344,1726719047963,-151.0,0.0001897,2]
[338528345,1726719047972,-151.0,0.0001897,2]
[338528346,1726719047983,-151.0,0.0001897,2]
[338528347,1726719047995,-329.654037,0.0001897,2]
[338528348,1726719048005,-329.654037,0.0001897,2]
[338528349,1726719048015,-151.0,0.00018972,2]
[338528350,1726719048024,-500.0,0.00018973,2]
[338528351,1726719048033,-500.0,0.00018973,2]
[338528352,1726719048045,-500.0,0.00018973,2]
[338528353,1726719048054,-370.61544553,0.00018973,2]
[338528354,1726719048063,-456.35387465,0.00018973,2]
[338528355,1726719048073,-500.0,0.00018973,2]
[338528356,1726719048082,-500.0,0.00018973,2]
[338528357,1726719048091,-500.0,0.00018973,2]
[338528358,1726719048100,-375.48114123,0.00018973,2]
[338528359,1726719048109,-477.45625902,0.00018973,2]
[338528360,1726719048119,-500.0,0.00018973,2]
[338528361,1726719048128,-500.0,0.00018973,2]
[338528362,1726719048138,-151.0,0.00018973,2]
[338528363,1726719048147,-151.0,0.00018973,2]
[338528364,1726719048157,-151.0,0.00018973,2]
[338528365,1726719048167,-151.0,0.00018973,2]
[338528366,1726719048176,-151.0,0.00018973,2]
[338528367,1726719048186,-151.0,0.00018973,2]
[338528368,1726719048195,-325.113519,0.00018973,2]
[338528369,1726719048204,-325.113519,0.00018973,2]
[338528370,1726719048214,-154.456261,0.00018973,2]
[338528371,1726719048223,-154.456261,0.00018973,2]
[338528372,1726719048233,-151.0,0.00018973,2]
[338528373,1726719048242,-151.0,0.00018973,2]
[338528374,1726719048252,-151.0,0.00018973,2]
[338528375,1726719048261,-227.330439,0.00018973,2]
[338528376,1726719048270,-227.330439,0.00018973,2]
[338528377,1726719048279,-248.401383,0.00018973,2]
[338528378,1726719048289,-248.401383,0.00018973,2]
[338528379,1726719048299,-152.822142,0.00018973,2]
[338528380,1726719048308,-152.822142,0.00018973,2]
[338528381,1726719048317,-160.48635205,0.00018979,2]
[338528382,1726719048327,-853.424225,0.0001898,2]
[338528383,1726719048337,-853.424225,0.0001898,2]
[338528384,1726719048346,-853.424225,0.0001898,2]
[338528385,1726719048356,-853.424225,0.0001898,2]
[338528386,1726719048366,-151.0,0.0001898,2]
[338528387,1726719048375,-151.0,0.0001898,2]
[338528388,1726719048384,-274.114717,0.0001898,2]
[338528389,1726719048394,-287.293363,0.0001898,2]
[338528390,1726719048404,-151.0,0.0001898,2]
[338528391,1726719048414,-287.293363,0.0001898,2]
[338528392,1726719048423,-424.732029,0.0001898,2]
[338528393,1726719048433,-424.732029,0.0001898,2]
[338528394,1726719048444,-500.0,0.00018986,2]
[338528395,1726719048454,-151.0,0.0001899,2]
[338528396,1726719048463,-151.0,0.0001899,2]
[338528397,1726719048473,-231.458744,0.0001899,2]
[338528398,1726719048482,-853.424225,0.0001899,2]
[338528399,1726719048492,-853.424225,0.0001899,2]
[338528400,1726719048501,-853.424225,0.0001899,2]
[338528401,1726719048511,-853.424225,0.0001899,2]
[338528402,1726719048520,-151.0,0.0001899,2]
[338528403,1726719048530,-276.182344,0.0001899,2]
[338528404,1726719048539,-151.0,0.0001899,2]
[338528405,1726719048549,-115097.12311241,0.0001899,3]
[338528434,1726720034183,-375.176568,0.00017808,2]
[338528435,1726720034207,-2773.33412202,0.00018862,2]
[338528436,1726720034229,-845.03875509,0.0001889,2]
[338528437,1726720034251,-150.0,0.000189,2]
[338528438,1726720034274,-181.76,0.00018953,3]
[338528439,1726720034298,-545.31,0.00018953,3]
[338528440,1726720034327,-300.0,0.00018962,2]
[338528441,1726720034350,-300.0,0.00018962,2]
[338528442,1726720034373,-6645.87821987,0.00018963,3]
[338528444,1726720118855,26898.57756387,0.0001,2]
[338528509,1726720238405,-500.0,0.00017808,2]
[338528510,1726720238414,-300.0,0.00018951,2]
[338528511,1726720238424,-300.0,0.00018951,2]
[338528512,1726720238433,-24667.13613612,0.00018952,3]
[338528513,1726720238470,-30783.30799978,0.00018952,3]
[338528514,1726720238480,-363.52,0.00018953,3]
[338528515,1726720238490,-1443.80611191,0.00018967,3]
[338528520,1726720241720,-54006.63802399,0.00018967,3]
[338528521,1726720241729,-500.0,0.00018973,2]
[338528522,1726720241738,-266.63981738,0.00018973,2]
[338528523,1726720241748,-500.0,0.00018973,2]
[338528524,1726720241757,-500.0,0.00018973,2]
[338528525,1726720241767,-500.0,0.00018973,2]
[338528526,1726720241776,-501.26542626,0.00018973,2]
[338528527,1726720241785,-500.0,0.00018973,2]
[338528528,1726720241796,-500.0,0.00018977,2]
[338528529,1726720241805,-500.0,0.00018977,2]
[338528530,1726720241816,-500.0,0.00018977,2]
[338528531,1726720241836,-500.0,0.00018977,2]
[338528532,1726720241845,-500.0,0.00018977,2]
[338528533,1726720241855,-500.0,0.00018977,2]
[338528534,1726720241864,-500.0,0.00018977,2]
[338528535,1726720241874,-500.0,0.00018977,2]
[338528536,1726720241883,-500.0,0.00018977,2]
[338528537,1726720241892,-500.0,0.00018977,2]
[338528538,1726720241902,-500.0,0.00018977,2]
[338528539,1726720241911,-500.0,0.00018977,2]
[338528540,1726720241921,-500.0,0.00018977,2]
[338528541,1726720241931,-500.0,0.00018977,2]
[338528542,1726720241940,-500.0,0.00018977,2]
[338528543,1726720241949,-500.0,0.00018977,2]
[338528544,1726720241959,-500.0,0.00018977,2]
[338528545,1726720241969,-500.0,0.00018977,2]
[338528546,1726720241978,-500.0,0.00018977,2]
[338528547,1726720241988,-500.0,0.00018977,2]
[338528548,1726720241997,-500.0,0.00018977,2]
[338528549,1726720242007,-500.0,0.00018977,2]
[338528550,1726720242016,-500.0,0.00018977,2]
[338528551,1726720242026,-500.0,0.00018977,2]
[338528552,1726720242035,-500.0,0.00018977,2]
[338528553,1726720242044,-500.0,0.00018977,2]
[338528554,1726720242054,-500.0,0.00018977,2]
[338528555,1726720242063,-500.0,0.00018977,2]
[338528556,1726720242076,-500.0,0.00018977,2]
[338528557,1726720242086,-500.0,0.00018977,2]
[338528558,1726720242095,-500.0,0.00018977,2]
[338528559,1726720242105,-500.0,0.00018977,2]
[338528560,1726720242118,-500.0,0.00018977,2]
[338528561,1726720242128,-500.0,0.00018977,2]
[338528562,1726720242137,-500.0,0.00018977,2]
[338528563,1726720242147,-500.0,0.00018977,2]
[338528564,1726720242157,-500.0,0.00018977,2]
[338528565,1726720242167,-500.0,0.00018977,2]
[338528566,1726720242177,-500.0,0.00018977,2]
[338528567,1726720242186,-500.0,0.00018977,2]
[338528568,1726720242196,-500.0,0.00018977,2]
[338528569,1726720242207,-500.0,0.00018977,2]
[338528570,1726720242216,-500.0,0.00018977,2]
[338528571,1726720242226,-500.0,0.00018977,2]
[338528572,1726720242239,-500.0,0.00018977,2]
[338528573,1726720242248,-500.0,0.00018977,2]
[338528574,1726720242258,-500.0,0.00018977,2]
[338528575,1726720242268,-500.0,0.00018977,2]
[338528576,1726720242278,-500.0,0.00018977,2]
[338528577,1726720242287,-500.0,0.00018977,2]
[338528578,1726720242297,-500.0,0.00018977,2]
[338528579,1726720242306,-500.0,0.00018977,2]
[338528580,1726720242316,-500.0,0.00018977,2]
[338528581,1726720242327,-500.0,0.00018977,2]
[338528582,1726720242337,-500.0,0.00018977,2]
[338528583,1726720242347,-500.0,0.00018977,2]
[338528584,1726720242356,-500.0,0.00018977,2]
[338528585,1726720242366,-500.0,0.00018977,2]
[338528586,1726720242375,-500.0,0.00018977,2]
[338528587,1726720242386,-500.0,0.00018977,2]
[338528588,1726720242397,-500.0,0.00018977,2]
[338528589,1726720242409,-500.0,0.00018977,2]
[338528590,1726720242419,-500.0,0.00018977,2]
[338528591,1726720242430,-500.0,0.00018977,2]
[338528592,1726720242439,-500.0,0.00018977,2]
[338528593,1726720242449,-500.0,0.00018977,2]
[338528594,1726720242459,-321.04634999,0.00018977,2]
[338528595,1726720242469,-500.0,0.00018977,2]
[338528596,1726720242479,-500.0,0.00018977,2]
[338528597,1726720242489,-500.0,0.00018977,2]
[338528598,1726720242499,-500.0,0.00018977,2]
[338528599,1726720242508,-500.0,0.00018977,2]
[338528600,1726720242518,-500.0,0.00018977,2]
[338528601,1726720242527,-500.0,0.00018977,2]
[338528602,1726720242537,-500.0,0.00018977,2]
[338528603,1726720242546,-500.0,0.00018977,2]
[338528604,1726720242555,-500.0,0.00018977,2]
[338528605,1726720242565,-500.0,0.00018977,2]
[338528606,1726720242575,-500.0,0.00018977,2]
[338528607,1726720242585,-500.0,0.00018977,2]
[338528608,1726720242595,-500.0,0.00018977,2]
[338528609,1726720242604,-500.0,0.00018977,2]
[338528610,1726720242614,-500.0,0.00018977,2]
[338528611,1726720242625,-500.0,0.00018977,2]
[338528612,1726720242634,-500.0,0.00018977,2]
[338528613,1726720242644,-500.0,0.00018977,2]
[338528614,1726720242654,-500.0,0.00018977,2]
[338528615,1726720242664,-500.0,0.00018977,2]
[338528616,1726720242674,-500.0,0.00018977,2]
[338528617,1726720242683,-500.0,0.00018977,2]
[338528618,1726720242692,-500.0,0.00018977,2]
[338528619,1726720242702,-500.0,0.00018977,2]
[338528620,1726720242712,-500.0,0.00018977,2]
[338528621,1726720242721,-500.0,0.00018977,2]
[338528622,1726720242731,-500.0,0.00018977,2]
[338528623,1726720242741,-500.0,0.00018977,2]
[338528624,1726720242750,-500.0,0.00018977,2]
[338528625,1726720242760,-500.0,0.00018977,2]
[338528626,1726720242769,-500.0,0.00018977,2]
[338528627,1726720242779,-500.0,0.00018977,2]
[338528628,1726720242788,-500.0,0.00018977,2]
[338528629,1726720242798,-500.0,0.00018977,2]
[338528631,1726720242808,-500.0,0.00018977,2]
[338528632,1726720242818,-500.0,0.00018977,2]
[338528633,1726720242827,-500.0,0.00018977,2]
[338528634,1726720242836,-500.0,0.00018977,2]
[338528635,1726720242845,-500.0,0.00018977,2]
[338528636,1726720242854,-174.02,0.00018977,2]
[338528637,1726720242864,-10986.98645118,0.00018977,2]
[338528638,1726720242954,-2999.43194251,0.00018977,2]
[338528640,1726720243585,-547.82110824,0.00018977,2]
[338528641,1726720243597,-365.58040294,0.00018977,2]
[338528642,1726720243607,-88243.65803892,0.00018978,3]
[338528648,1726720375645,10000.0,0.00014013,2]
[338528649,1726720382102,10000.0,0.00014013,2]
[338528650,1726720387645,10000.0,0.00014013,2]
[338528652,1726720393866,10000.0,0.00014013,2]
[338528653,1726720400080,10000.0,0.00014013,2]
[338528654,1726720405827,10000.0,0.00014013,2]
[338528655,1726720411459,10000.0,0.00014013,2]
[338528656,1726720424889,10000.0,0.00014013,2]
[338528657,1726720430484,10000.0,0.00014013,2]
[338528658,1726720435748,10000.0,0.00014013,2]
[338528659,1726720441237,10000.0,0.00014013,2]
[338528660,1726720449321,1824.87,0.00014013,2]
[338528662,1726720489559,154.0,0.00014013,2]
[338528663,1726720599555,400.0,0.0002,120]
[338528816,1726721241126,-287.206197,0.00016926,2]
[338528817,1726721241150,-905.1289513,0.00017021,2]
[338528818,1726721241172,-174.87158,0.00017703,2]
[338528819,1726721241193,-475.0,0.00017808,2]
[338528820,1726721241215,-300.0,0.00017867,2]
[338528821,1726721241236,-3922.47551844,0.00017868,2]
[338528822,1726721241256,-3931.96964812,0.00017868,2]
[338528823,1726721241276,-688.78284105,0.00018,2]
[338530034,1726721438641,-10874.69740582,0.00017854,2]
[338530121,1726721439471,-10685.36780938,0.00017854,2]
[338530123,1726721439480,-174.87158,0.00017918,2]
[338530125,1726721439490,-300.0,0.00017999,2]
[338530126,1726721439499,-300.0,0.00017999,2]
[338530129,1726721439509,-2311.21715895,0.00018,2]
[338530131,1726721439519,-4070.0,0.00018,2]
[338530133,1726721439528,-59566.0,0.00018,2]
[338530135,1726721439538,-153.343668,0.00018552,2]
[338530137,1726721439549,-153.0,0.00018652,2]
[338530139,1726721439559,-522.514334,0.00018654,2]
[338530141,1726721439568,-1561.997467,0.00018654,2]
[338530143,1726721439578,-171.849663,0.00018654,2]
[338530145,1726721439587,-208.739459,0.000187,2]
[338530147,1726721439597,-306.0,0.000187,2]
[338530149,1726721439608,-153.0,0.000187,2]
[338530151,1726721439618,-208.739459,0.000187,2]
[338530153,1726721439628,-208.739459,0.000187,2]
[338530155,1726721439642,-208.739459,0.000187,2]
[338530158,1726721439653,-153.0,0.000187,2]
[338530160,1726721439665,-208.739459,0.000187,2]
[338530162,1726721439675,-208.739459,0.000187,2]
[338530164,1726721439685,-153.0,0.000187,2]
[338530166,1726721439695,-104731.18179807,0.0001888,2]
[338530178,1726721439805,-405.56735736,0.0001888,2]
[338530181,1726721439817,-290.21825122,0.0001888,2]
[338530275,1726721440658,-367270.45742545,0.0001888,2]
[338530277,1726721440667,-150.0,0.00018886,2]
[338530279,1726721440677,-522.514334,0.00018887,2]
[338530281,1726721440686,-1561.997467,0.00018887,2]
[338530283,1726721440696,-153.0,0.000189,2]
[338530285,1726721440708,-208.2664379,0.000189,2]
[338530287,1726721440718,-417.478918,0.000189,2]
[338530289,1726721440730,-208.739459,0.000189,2]
[338530291,1726721440740,-4907.27413743,0.000189,2]
[338530294,1726721440826,-1360.10167213,0.000189,2]
[338535270,1726722428146,-7425.9072933,0.00017553,2]
[338535271,1726722428168,-682.306278,0.00017558,2]
[338535272,1726722428193,-166.950563,0.00017764,2]
[338535273,1726722428217,-468.824052,0.00017808,2]
[338535274,1726722428238,-300.0,0.00017999,2]
[338535275,1726722428261,-300.0,0.00017999,2]
[338535276,1726722428285,-1000.0,0.00018,2]
[338535277,1726722428308,-166.950563,0.00018073,2]
[338535278,1726722428331,-166.950563,0.00018381,2]
[338535279,1726722428353,-780.43269586,0.00018429,2]
[338535280,1726722428374,-150.0,0.00018449,2]
[338535281,1726722428394,-208.739459,0.000185,2]
[338535282,1726722428416,-1000.0,0.000185,2]
[338535283,1726722428436,-48.50283038,0.00018603,2]
[338535492,1726722637753,-258.54644461,0.00017884,2]
[338535494,1726722637763,-167.90147936,0.00017884,2]
[338535496,1726722637773,-166.737641,0.00017984,2]
[338535498,1726722637784,-166.737641,0.00018296,2]
[338535500,1726722637794,-104.49716962,0.00018603,2]
[338535502,1726722637804,-154.0316401,0.00018603,2]
[338535504,1726722637813,-166.737641,0.00018609,2]
[338535506,1726722637823,-174.171444,0.00018654,2]
[338535508,1726722637833,-312.399493,0.00018654,2]
[338535510,1726722637843,-192.88214398,0.00018659,2]
[338535512,1726722637853,-167.90147935,0.00018808,2]
[338535514,1726722637862,-2426.66735675,0.00018817,2]
[338535516,1726722637872,-312.399493,0.00018887,2]
[338535518,1726722637881,-206.95745254,0.0001889,2]
[338535520,1726722637891,-632.22,0.00018896,3]
[338535522,1726722637904,-300.0,0.00018899,2]
[338535524,1726722637913,-300.0,0.00018899,2]
[338535526,1726722637923,-5156.26207014,0.000189,2]
[338535528,1726722637932,-3521.789168,0.000189,2]
[338535531,1726722637941,-2000.0,0.000189,2]
[338535532,1726722637951,-2000.0,0.000189,3]
[338535534,1726722637960,-2000.0,0.000189,4]
[338535536,1726722637970,-2000.0,0.000189,5]
[338535539,1726722637980,-2000.0,0.000189,6]
[338535541,1726722637989,-2000.0,0.000189,7]
[338535543,1726722637999,-2000.0,0.000189,8]
[338535545,1726722638010,-65762.20338247,0.00018906,2]
[338535548,1726722638031,-795.25274607,0.00018906,2]
[338535550,1726722638043,-1050.82,0.00018906,2]
[338535552,1726722638055,-18328.84423656,0.00018906,2]
[338535554,1726722638065,-500.0,0.00018908,2]
[338535557,1726722638075,-500.0,0.00018908,2]
[338535558,1726722638084,-463.65246395,0.00018908,2]
[338535560,1726722638093,-500.0,0.00018908,2]
[338535562,1726722638103,-202.21203104,0.00018908,2]
[338535564,1726722638112,-500.0,0.00018908,2]
[338535567,1726722638121,-551.53692944,0.00018908,2]
[338535568,1726722638132,-500.0,0.00018908,2]
[338535571,1726722638141,-261.97303091,0.00018908,2]
[338535572,1726722638152,-370.2146711,0.00018908,2]
[338535736,1726722639952,-129.7853289,0.00018908,2]
[338535738,1726722639963,-372.55999201,0.00018908,2]
[338535740,1726722639974,-500.0,0.00018908,2]
[338535742,1726722639986,-500.0,0.00018908,2]
[338535744,1726722639997,-500.0,0.00018908,2]
[338535747,1726722640008,-500.0,0.00018908,2]
[338535749,1726722640019,-500.0,0.00018908,2]
[338535751,1726722640030,-500.0,0.00018908,2]
[338535753,1726722640042,-500.0,0.00018908,2]
[338535755,1726722640053,-500.0,0.00018908,2]
[338535757,1726722640064,-500.0,0.00018908,2]
[338535760,1726722640075,-456.37926126,0.00018908,2]
[338535762,1726722640087,-500.0,0.00018908,2]
[338535764,1726722640098,-500.0,0.00018908,2]
[338535766,1726722640110,-500.0,0.00018908,2]
[338535769,1726722640121,-500.0,0.00018908,2]
[338535771,1726722640132,-500.0,0.00018908,2]
[338535773,1726722640143,-500.0,0.00018908,2]
[338535775,1726722640157,-500.0,0.00018908,2]
[338535777,1726722640169,-500.0,0.00018908,2]
[338535780,1726722640180,-265.33295739,0.00018908,2]
[338535782,1726722640192,-500.0,0.00018908,2]
[338535784,1726722640203,-500.0,0.00018908,2]
[338535786,1726722640214,-500.0,0.00018908,2]
[338535789,1726722640225,-500.0,0.00018908,2]
[338535791,1726722640237,-500.0,0.00018908,2]
[338535793,1726722640248,-500.0,0.00018908,2]
[338535795,1726722640259,-500.0,0.00018908,2]
[338535797,1726722640271,-500.0,0.00018908,2]
[338535800,1726722640282,-500.0,0.00018908,2]
[338535802,1726722640293,-500.0,0.00018908,2]
[338535804,1726722640304,-500.0,0.00018908,2]
[338535806,1726722640315,-500.0,0.00018908,2]
[338535808,1726722640327,-500.0,0.00018908,2]
[338535811,1726722640338,-500.0,0.00018908,2]
[338535813,1726722640349,-500.0,0.00018908,2]
[338535815,1726722640364,-500.0,0.00018908,2]
[338535817,1726722640375,-500.0,0.00018908,2]
[338535819,1726722640386,-500.0,0.00018908,2]
[338535821,1726722640397,-500.0,0.00018908,2]
[338535824,1726722640410,-500.0,0.00018908,2]
[338535826,1726722640421,-500.0,0.00018908,2]
[338535828,1726722640434,-500.0,0.00018908,2]
[338535830,1726722640445,-500.0,0.00018908,2]
[338535833,1726722640457,-500.0,0.00018908,2]
[338535835,1726722640468,-500.0,0.00018908,2]
[338535837,1726722640479,-500.0,0.00018908,2]
[338535839,1726722640491,-204.68075872,0.00018908,2]
[338535842,1726722640506,-295.31924128,0.00018908,2]
[338535844,1726722640517,-376.46992677,0.00018908,2]
[338536395,1726722645829,-123.53007323,0.00018908,2]
[338536397,1726722645839,-500.0,0.00018908,2]
[338536399,1726722645848,-500.0,0.00018908,2]
[338536401,1726722645859,-500.0,0.00018908,2]
[338536403,1726722645869,-500.0,0.00018908,2]
[338536405,1726722645879,-500.0,0.00018908,2]
[338536407,1726722645889,-500.0,0.00018908,2]
[338536409,1726722645898,-500.0,0.00018908,2]
[338536411,1726722645909,-436.0484212,0.00018908,2]
[338537363,1726723554117,-899.980841,0.00017267,2]
[338537364,1726723554140,-160.43222061,0.00017363,2]
[338537365,1726723554164,-166.737641,0.00017463,2]
[338537366,1726723554187,-462.048121,0.00017808,2]
[338537367,1726723554209,-160.712304,0.00017869,2]
[338537368,1726723554233,-160.712304,0.00017891,2]
[338537369,1726723554255,-160.712304,0.00017913,2]
[338537370,1726723554277,-160.712304,0.00017936,2]
[338537371,1726723554302,-160.712304,0.00017958,2]
[338537372,1726723554325,-760.53487959,0.00018789,2]
[338537373,1726723554347,-300.0,0.00018872,2]
[338537374,1726723554368,-300.0,0.00018872,2]
[338537375,1726723554389,-500.0,0.00018873,2]
[338537376,1726723554412,-501.26542626,0.00018873,2]
[338537377,1726723554435,-500.0,0.00018873,2]
[338537378,1726723554456,-266.63981738,0.00018873,2]
[338537379,1726723554478,-500.0,0.00018873,2]
[338537380,1726723554503,-500.0,0.00018873,2]
[338537381,1726723554525,-500.77493312,0.00018873,2]
[338537382,1726723554547,-500.0,0.00018873,2]
[338537383,1726723554571,-121.43003961,0.00018876,5]
[338537386,1726723634087,-160.43222056,0.00017565,2]
[338537387,1726723634108,-160.43222056,0.00017767,2]
[338537388,1726723634129,-160.43222056,0.00017969,2]
[338537389,1726723634150,-160.43222056,0.0001817,2]
[338537390,1726723634171,-160.43222056,0.00018372,2]
[338537391,1726723634191,-160.43222056,0.00018574,2]
[338537392,1726723634214,-160.43222056,0.00018776,2]
[338537393,1726723634235,-2123.33393713,0.00018776,2]
[338537394,1726723634255,-1047.42378809,0.00018789,7]
[338537395,1726723634275,-955.40545042,0.000188,2]
[338537396,1726723634296,-500.0,0.00018873,2]
[338537397,1726723634317,-300.0,0.00018875,2]
[338537398,1726723634338,-21986.27168562,0.00018876,5]
[338537399,1726723634360,-500.0,0.00018876,2]
[338537400,1726723634383,-581.83103976,0.00018876,2]
[338537401,1726723634405,-500.0,0.00018876,2]
[338537402,1726723634427,-581.83103976,0.00018876,2]
[338537403,1726723634451,-500.0,0.00018876,2]
[338537404,1726723634472,-581.83103976,0.00018876,2]